bitfinex-derivatives/quotes_ETHF0:USTF0_20240907
["timestamp","ask_amount","ask_price","bid_price","bid_amount"]
[1725692182112,0.43934,2276.7,2276.6,3.2078]
[1725692182509,4.83214,2276.7,2276.6,3.2078]
[1725692182710,4.83214,2276.7,2276.3,1.69732935]
[1725692182711,0.43938,2276.5,2276.3,3.2078]
[1725692182910,0.43937,2276.6,2276.3,3.64721]
[1725692183512,0.43938,2276.5,2276.3,4.3393529]
[1725692183713,0.43938,2276.5,2276.3,3.2078]
[1725692183907,0.43937,2276.6,2276.3,4.7787629]
[1725692184310,0.43938,2276.5,2276.3,4.7787629]
[1725692184806,1.0983,2276.8,2276.3,4.3393529]
[1725692185014,0.43938,2276.5,2276.3,1.5709629]
[1725692185209,0.43938,2276.5,2276.4,4.3393529]
[1725692185509,0.43937,2276.6,2276.4,4.3393529]
[1725692185907,0.43938,2276.5,2276.4,4.3393529]
[1725692186411,9.00259,2277.1,2276.4,4.7787429]
[1725692186412,0.43936,2276.6,2276.4,4.7787429]
[1725692186613,1.09825,2277.0,2276.4,4.7787429]
[1725692186813,0.43936,2276.6,2276.4,4.3393529]
[1725692187912,0.43936,2276.6,2276.5,1.1315529]
[1725692188112,0.43936,2276.6,2276.4,4.3393529]
[1725692189521,0.43935,2276.7,2276.4,4.7787429]
[1725692189723,0.43935,2276.7,2276.5,0.3717]
[1725692190312,1.09825,2276.9,2276.4,4.3393529]
[1725692190513,0.43937,2276.6,2276.4,4.3393529]
[1725692191018,0.43934,2276.7,2276.4,4.7787429]
[1725692191320,0.43934,2276.7,2276.5,1.5709229]
[1725692191710,0.43936,2276.6,2276.5,1.1315529]
[1725692192315,0.43936,2276.6,2276.5,3.32926018]
[1725692192519,0.43935,2276.7,2276.5,1.1315529]
[1725692193222,0.43936,2276.6,2276.5,1.1315529]
[1725692193419,1.09825,2276.9,2276.5,3.32935955]
[1725692193618,0.43935,2276.7,2276.6,1.1315529]
[1725692193813,0.43935,2276.7,2276.6,3.2078]
[1725692194121,0.43935,2276.7,2276.6,4.3393529]
[1725692194517,7.42812604,2277.5,2276.6,4.3393529]
[1725692194518,4.11,2278.0,2276.9,3.2078]
[1725692194715,4.7966,2278.5,2278.0,0.43908]
[1725692195019,3.2078,2278.5,2278.0,1.13547739]
[1725692195321,0.43894,2278.8,2278.2,3.64684]
[1725692195511,0.43894,2278.8,2278.5,3.2078]
[1725692195714,0.3934,2278.9,2278.5,3.2078]
[1725692196017,0.43897,2278.6,2278.5,3.2078]
[1725692196225,0.43896,2278.7,2278.5,3.2078]
[1725692196620,0.43894,2278.8,2278.5,3.2078]
[1725692196923,0.83233,2278.9,2278.5,3.2078]
[1725692197617,1.09691,2279.7,2278.6,0.43896]
[1725692197822,1.09691,2279.7,2278.7,3.64674]
[1725692197823,0.3636,2279.3,2278.7,3.64674]
[1725692198020,0.80244,2279.3,2279.0,3.2078]
[1725692199034,0.43887,2279.1,2279.0,3.2078]
[1725692199631,4.82687,2279.1,2279.0,3.2078]
[1725692199825,0.43892,2278.9,2278.6,3.2078]
[1725692200023,0.83481,2279.0,2278.6,3.2078]
[1725692200333,0.3959,2279.0,2278.6,3.2078]
[1725692200528,0.43895,2278.7,2278.6,3.2078]
[1725692202232,1.88165,2279.0,2278.3,3.2078]
[1725692202427,0.43894,2278.8,2278.6,3.2078]
[1725692204437,0.43892,2278.9,2278.6,3.2078]
[1725692204642,0.43893,2278.8,2278.6,3.2078]
[1725692205038,0.43894,2278.8,2278.6,3.2078]
[1725692207537,0.7844,2279.0,2278.6,3.2078]
[1725692209041,0.43891,2278.9,2278.6,3.2078]
[1725692209343,0.43893,2278.8,2278.6,3.2078]
[1725692210145,0.43895,2278.7,2278.6,3.2078]
[1725692210638,0.43894,2278.8,2278.6,3.2078]
[1725692210844,0.43895,2278.7,2278.6,3.2078]
[1725692211041,0.43894,2278.8,2278.6,3.2078]
[1725692211542,0.43895,2278.7,2278.6,3.2078]
[1725692212650,0.7844,2279.0,2278.6,3.2078]
[1725692213052,0.43895,2278.7,2278.6,3.2078]
[1725692213842,0.7844,2279.0,2278.6,3.2078]
[1725692214145,0.43894,2278.8,2278.6,3.2078]
[1725692215543,0.43892,2278.9,2278.6,3.2078]
[1725692215757,0.43891,2278.9,2278.6,3.2078]
[1725692215943,0.43894,2278.8,2278.6,3.2078]
[1725692217351,0.3959,2279.0,2278.6,3.2078]
[1725692217755,5.93223,2279.3,2278.9,3.2078]
[1725692217756,4.91244,2279.3,2278.9,3.2078]
[1725692218059,4.11,2279.7,2279.3,0.43883]
[1725692218347,4.11,2279.7,2279.6,3.2078]
[1725692218552,6.6141,2280.2,2279.6,3.2078]
[1725692218553,0.43867,2280.2,2279.6,3.64657]
[1725692218752,0.43867,2280.2,2280.0,3.2078]
[1725692219244,0.43863,2280.4,2280.0,3.2078]
[1725692219447,5.20643,2280.7,2280.0,3.2078]
[1725692219746,0.43874,2279.9,2279.5,3.2078]
[1725692219948,7.92422634,2280.5,2279.5,3.2078]
[1725692219949,1.09666,2280.2,2279.5,3.2078]
[1725692220154,0.43875,2279.8,2279.5,3.2078]
[1725692221254,0.43876,2279.7,2279.5,3.2078]
[1725692221453,0.43875,2279.8,2279.5,3.2078]
[1725692221746,0.43878,2279.6,2279.5,3.2078]
[1725692221940,1.09695,2279.6,2279.0,3.5993]
[1725692222145,0.7764,2279.5,2279.0,3.2078]
[1725692222350,0.43887,2279.1,2279.0,3.2078]
[1725692222550,0.43892,2278.9,2278.7,3.2078]
[1725692225944,0.43893,2278.8,2278.7,3.2078]
[1725692226345,5.92427,2278.8,2278.7,3.2078]
[1725692226748,11.92427,2278.8,2278.7,3.2078]
[1725692226953,0.43903,2278.3,2278.2,3.2078]
[1725692227945,4.82863,2278.3,2278.2,3.2078]
[1725692228246,11.92621,2278.3,2278.2,3.2078]
[1725692229756,0.4391,2278.0,2277.8,3.2078]
[1725692231162,0.43911,2277.9,2277.8,3.2078]
[1725692232162,0.43912,2277.9,2277.5,6.2478]
[1725692232361,0.4391,2278.0,2277.5,6.2478]
[1725692232558,0.43911,2277.9,2277.8,3.2078]
[1725692233052,0.43909,2278.0,2277.8,3.2078]
[1725692233257,0.3767,2278.4,2277.8,3.2078]
[1725692233446,0.43907,2278.1,2277.8,3.2078]
[1725692235664,0.43909,2278.0,2277.8,3.2078]
[1725692236460,0.43911,2277.9,2277.8,3.2078]
[1725692237556,0.4391,2278.0,2277.8,3.2078]
[1725692237757,1.09763,2278.2,2277.8,3.2078]
[1725692238257,0.43911,2277.9,2277.8,3.2078]
[1725692238860,0.4391,2278.0,2277.8,3.2078]
[1725692239252,0.3767,2278.4,2277.8,3.2078]
[1725692239765,0.43909,2278.0,2277.8,3.2078]
[1725692240265,0.43911,2277.9,2277.8,3.2078]
[1725692240452,0.43908,2278.1,2277.8,3.2078]
[1725692240761,0.43911,2277.9,2277.8,3.2078]
[1725692241155,4.82951,2277.9,2277.8,3.2078]
[1725692241469,0.43911,2277.9,2277.8,3.2078]
[1725692243158,0.43911,2277.9,2277.8,3.1875]
[1725692244877,4.82951,2277.9,2277.8,3.1875]
[1725692245465,0.43916,2277.6,2277.4,3.2078]
[1725692246665,0.43915,2277.7,2277.4,3.2078]
[1725692247065,0.43917,2277.6,2277.4,3.2078]
[1725692249562,0.43918,2277.5,2277.4,3.2078]
[1725692249756,0.82668,2277.5,2277.4,3.2078]
[1725692250763,3.4061,2277.8,2277.4,3.2078]
[1725692251063,0.3867,2278.0,2277.4,3.2078]
[1725692251368,0.43912,2277.8,2277.7,3.2078]
[1725692251861,4.82952,2277.8,2277.7,3.2078]
[1725692252164,0.43918,2277.6,2277.2,3.2078]
[1725692252382,0.4392,2277.5,2277.2,3.2078]
[1725692252666,1.09782,2277.8,2277.2,3.2078]
[1725692252867,0.4392,2277.4,2277.2,3.2078]
[1725692254767,0.4392,2277.5,2277.2,3.2078]
[1725692255163,0.43921,2277.4,2277.2,3.2078]
[1725692256066,0.43922,2277.3,2277.2,3.2078]
[1725692256266,0.43921,2277.4,2277.2,3.2078]
[1725692258369,0.43922,2277.3,2277.2,3.2078]
[1725692259465,0.43921,2277.4,2277.2,3.2078]
[1725692259670,1.45564,2277.6,2277.2,3.2078]
[1725692259883,0.43922,2277.4,2277.2,3.2078]
[1725692260967,0.43922,2277.3,2277.2,3.2078]
[1725692261678,4.83042,2277.3,2277.2,3.2078]
[1725692263180,4.83042,2277.3,2276.9,3.2078]
[1725692263181,4.3912,2277.3,2276.9,3.2078]
[1725692263375,0.43927,2277.1,2276.9,3.2078]
[1725692264679,0.66239071,2277.2,2276.9,3.2078]
[1725692264872,0.43925,2277.2,2276.9,3.2078]
[1725692265075,0.43926,2277.1,2276.9,3.2078]
[1725692266375,0.43928,2277.0,2276.9,3.2078]
[1725692266971,0.389,2277.4,2276.9,6.2478]
[1725692267174,0.389,2277.4,2276.9,3.2078]
[1725692267386,0.43928,2277.0,2276.9,3.2078]
[1725692267973,0.43927,2277.1,2276.9,3.2078]
[1725692268572,0.43928,2277.0,2276.8,3.2078]
[1725692271575,0.3759,2277.1,2276.8,3.2078]
[1725692272084,0.43929,2277.0,2276.8,3.2078]
[1725692274282,0.81517,2277.1,2276.8,3.2078]
[1725692275176,0.43928,2277.0,2276.8,3.2078]
[1725692275481,0.43927,2277.1,2276.8,3.2078]
[1725692275683,0.21714195,2277.2,2276.8,3.2078]
[1725692275878,0.43929,2277.0,2276.8,3.2078]
[1725692277180,0.4393,2276.9,2276.8,3.2078]
[1725692278182,0.21720783,2277.1,2276.8,3.2078]
[1725692278384,0.4393,2276.9,2276.8,3.2078]
[1725692278878,3.2078,2277.6,2276.8,10.4778]
[1725692279082,6.777,2279.6,2278.3,0.43902]
[1725692279083,4.11,2278.5,2278.3,0.43902]
[1725692279278,0.65853575,2278.9,2278.4,3.2078]
[1725692279482,0.43892,2278.9,2278.4,3.2078]
[1725692279673,0.43894,2278.8,2278.4,3.2078]
[1725692279875,0.43902,2278.4,2278.0,3.2078]
[1725692280079,0.43901,2278.4,2278.0,3.2078]
[1725692280280,0.65775865,2278.5,2278.0,3.2078]
[1725692281085,0.3724,2278.6,2278.3,3.2078]
[1725692281382,0.65332721,2278.9,2278.3,3.2078]
[1725692282481,0.43894,2278.8,2278.3,3.2078]
[1725692282683,0.21440721,2278.9,2278.3,3.2078]
[1725692282890,4.305,2279.1,2278.3,3.2078]
[1725692283076,0.43892,2278.9,2278.3,3.2078]
[1725692283282,0.21544013,2278.8,2278.3,3.2078]
[1725692283576,6.2478,2279.1,2278.4,0.3964]
[1725692283774,0.43891,2278.9,2278.4,0.3964]
[1725692283979,0.43894,2278.8,2278.4,0.3964]
[1725692285182,0.43892,2278.9,2278.4,0.3964]
[1725692285488,0.43893,2278.8,2278.4,0.3964]
[1725692285687,0.43892,2278.9,2278.4,0.3964]
[1725692286979,0.43893,2278.8,2278.3,3.2078]
[1725692287297,0.43893,2278.8,2277.9,3.04]
[1725692287298,3.04,2278.4,2277.9,3.2078]
[1725692287589,0.3752,2278.3,2277.9,3.2078]
[1725692287788,0.81423,2278.3,2277.9,3.2078]
[1725692288086,0.43907,2278.1,2277.9,3.2078]
[1725692288289,0.43909,2278.0,2277.6,3.2078]
[1725692290392,0.43912,2277.9,2277.6,3.2078]
[1725692292098,0.43913,2277.8,2277.6,3.2078]
[1725692294091,0.3943,2278.0,2277.6,3.2078]
[1725692294391,0.43913,2277.8,2277.6,3.2078]
[1725692295292,0.43913,2277.8,2277.7,3.2078]
[1725692296490,4.82953,2277.8,2277.7,3.2078]
[1725692296801,7.86953,2277.8,2277.7,3.2078]
[1725692302394,0.66357249,2277.9,2277.7,3.2078]
[1725692303596,0.43912,2277.8,2277.7,3.2078]
[1725692305502,0.66357249,2277.9,2277.7,3.2078]
[1725692305995,0.43912,2277.8,2277.7,3.2078]
[1725692306200,0.66357249,2277.9,2277.7,3.2078]
[1725692307998,0.43912,2277.8,2277.7,3.2078]
[1725692308595,0.66357249,2277.9,2277.7,3.2078]
[1725692308804,0.43912,2277.8,2277.7,3.2078]
[1725692310605,0.43912,2277.8,2277.3,0.82761]
[1725692310805,0.43912,2277.8,2277.7,3.2078]
[1725692318204,0.43917,2277.6,2277.3,0.3884]
[1725692318404,0.43917,2277.6,2277.5,3.2078]
[1725692321006,0.66357249,2277.9,2277.5,3.2078]
[1725692321208,0.22445249,2277.9,2277.5,3.2078]
[1725692321410,3.7982,2278.0,2277.5,3.2078]
[1725692321610,0.43913,2277.8,2277.5,3.2078]
[1725692321811,3.7982,2278.0,2277.5,3.2078]
[1725692321812,0.43916,2277.6,2277.5,3.2078]
[1725692326316,0.43916,2277.6,2277.3,0.3884]
[1725692326514,0.43917,2277.6,2277.3,0.3884]
[1725692327615,0.43917,2277.6,2277.5,3.2078]
[1725692328324,0.66082098,2277.7,2277.5,3.2078]
[1725692328615,4.89595,2278.0,2277.5,3.2078]
[1725692328820,0.43912,2277.9,2277.5,3.2078]
[1725692329020,0.43913,2277.8,2277.5,3.2078]
[1725692329212,0.7582,2278.0,2277.5,3.2078]
[1725692329213,0.21685921,2277.9,2277.5,3.2078]
[1725692329416,0.21685921,2277.9,2277.5,4.77747819]
[1725692329613,0.21685921,2277.9,2277.8,3.2078]
[1725692329614,0.65596921,2277.9,2277.8,3.2078]
[1725692330219,0.43913,2277.8,2277.5,3.2078]
[1725692330924,0.43913,2277.8,2277.5,4.33829819]
[1725692331821,0.43913,2277.8,2277.6,1.13049819]
[1725692332218,0.43914,2277.7,2277.6,1.13049819]
[1725692332408,0.43914,2277.7,2277.6,3.32738698]
[1725692332607,0.43914,2277.7,2277.6,3.89263608]
[1725692333818,4.11,2278.2,2277.8,0.43911]
[1725692334026,4.54905,2278.2,2278.1,3.2078]
[1725692334219,0.43905,2278.2,2278.1,4.34505467]
[1725692334413,0.43905,2278.2,2278.1,3.2078]
[1725692335225,0.43909,2278.0,2277.9,1.51075467]
[1725692335423,0.43909,2278.0,2277.9,1.13725467]
[1725692335624,1.09765,2278.2,2277.8,4.34505467]
[1725692335625,0.43911,2277.9,2277.8,4.34505467]
[1725692335819,0.43911,2277.9,2277.8,3.2078]
[1725692336221,0.4391,2278.0,2277.8,4.34505467]
[1725692336721,0.43911,2277.9,2277.8,3.2078]
[1725692337520,0.66099003,2277.9,2277.8,3.2078]
[1725692340730,0.374,2278.0,2277.8,3.2078]
[1725692341126,0.374,2278.0,2277.8,4.34505467]
[1725692341329,0.82366,2278.2,2277.8,4.73395467]
[1725692342222,0.43906,2278.2,2278.1,3.2078]
[1725692342929,0.43906,2278.2,2277.9,1.42865467]
[1725692343130,0.43906,2278.2,2277.9,0.2914]
[1725692345530,0.80004,2278.3,2277.9,0.7305]
[1725692345733,0.361,2278.3,2278.1,3.2078]
[1725692345925,3.86472,2278.4,2278.1,3.2078]
[1725692345926,0.43902,2278.4,2278.1,3.2078]
[1725692346131,0.43902,2278.4,2278.2,0.3675]
[1725692346832,4.9082,2278.5,2278.2,0.3675]
[1725692347138,4.54899,2278.5,2278.4,3.2078]
[1725692348424,0.43899,2278.5,2278.4,3.2078]
[1725692351046,0.43899,2278.5,2278.0,1.13725467]
[1725692351047,0.43906,2278.2,2278.1,3.2078]
[1725692351242,0.43908,2278.1,2277.8,1.13725467]
[1725692351436,0.80298,2278.1,2277.8,1.13725467]
[1725692351942,0.80298,2278.1,2278.0,3.2078]
[1725692355742,0.80298,2278.1,2277.7,4.72375467]
[1725692356242,0.80298,2278.1,2277.8,1.13725467]
[1725692356443,0.43909,2278.0,2277.8,1.13725467]
[1725692358846,0.43909,2278.0,2277.7,4.72375467]
[1725692359945,0.43909,2278.0,2277.8,1.13725467]
[1725692360147,0.43911,2277.9,2277.7,4.72375467]
[1725692360449,0.43909,2278.0,2277.7,9.11415467]
[1725692360644,0.43909,2278.0,2277.7,5.16289467]
[1725692361449,0.80297,2278.1,2277.7,5.16289467]
[1725692361756,0.80297,2278.1,2278.0,3.2078]
[1725692363056,0.80194,2278.3,2278.0,3.2078]
[1725692363254,0.721,2278.3,2278.0,3.2078]
[1725692363558,0.43905,2278.2,2278.0,3.2078]
[1725692364155,0.43907,2278.1,2278.0,3.2078]
[1725692364855,0.3581,2278.3,2278.0,8.8674]
[1725692365050,1.1372,2278.7,2278.2,0.43904]
[1725692365249,0.43898,2278.6,2278.4,3.2078]
[1725692366553,1.48837,2278.7,2278.4,3.2078]
[1725692369354,7.53829483,2279.1,2278.4,3.2078]
[1725692369558,0.35115,2278.8,2278.7,3.2078]
[1725692370060,0.35115,2278.8,2278.3,1.48846467]
[1725692370061,0.35116,2278.7,2278.4,3.2078]
[1725692371158,0.43895,2278.8,2278.4,3.2078]
[1725692371753,0.43896,2278.7,2278.4,3.2078]
[1725692372452,1.27,2278.8,2278.4,3.2078]
[1725692372653,0.43896,2278.7,2278.4,3.2078]
[1725692373654,0.3653,2278.9,2278.4,3.2078]
[1725692373860,1.6353,2278.9,2278.4,4.78405467]
[1725692374156,1.6353,2278.9,2278.4,3.6468]
[1725692374366,2.07423,2278.9,2278.4,3.6468]
[1725692374757,0.43895,2278.7,2278.4,3.2078]
[1725692375057,0.43895,2278.7,2278.4,4.34505467]
[1725692375457,0.43897,2278.6,2278.4,4.34505467]
[1725692375658,0.43897,2278.6,2278.4,3.2078]
[1725692375864,0.43897,2278.6,2278.4,4.34505467]
[1725692376063,0.43897,2278.6,2278.4,3.2078]
[1725692377054,0.43899,2278.5,2278.4,3.2078]
[1725692379959,1.70898,2278.6,2278.4,3.2078]
[1725692380767,0.43899,2278.5,2278.4,3.2078]
[1725692380970,0.43899,2278.5,2278.0,4.34505467]
[1725692380971,0.43902,2278.4,2278.0,4.34505467]
[1725692381160,1.6624,2278.4,2278.0,4.34505467]
[1725692381355,0.43904,2278.3,2278.0,3.2078]
[1725692382464,2.10142,2278.4,2278.0,3.2078]
[1725692383066,0.43903,2278.3,2278.0,3.2078]
[1725692383570,0.3924,2278.4,2278.1,0.43907]
[1725692383754,0.3924,2278.4,2278.3,3.2078]
[1725692386664,0.3924,2278.4,2278.3,3.5821]
[1725692388663,0.83141,2278.4,2278.3,3.5821]
[1725692388962,0.3924,2278.4,2278.3,3.5821]
[1725692389164,0.83141,2278.4,2278.1,0.40468552]
[1725692389357,0.83141,2278.4,2278.1,0.43906]
[1725692389757,0.83141,2278.4,2278.0,2.14495201]
[1725692390065,0.43903,2278.3,2278.0,2.14495201]
[1725692390371,0.43903,2278.3,2277.9,1.33290211]
[1725692390570,0.43903,2278.3,2278.0,2.63543926]
[1725692390772,0.43903,2278.3,2278.1,2.19635833]
[1725692391069,0.43903,2278.3,2277.8,1.40607541]
[1725692391262,0.83142,2278.4,2278.0,0.43907]
[1725692391565,0.83142,2278.4,2277.8,1.40607541]
[1725692391566,0.83142,2278.4,2278.1,2.63540885]
[1725692391772,0.83142,2278.4,2278.1,0.43907]
[1725692391970,0.83142,2278.4,2278.0,0.43907]
[1725692392870,0.43903,2278.3,2278.0,0.43907]
[1725692394568,0.83142,2278.4,2278.1,0.43906]
[1725692394973,0.83142,2278.4,2278.1,0.39515401]
[1725692395272,0.83142,2278.4,2278.0,0.43907]
[1725692395468,0.83142,2278.4,2278.1,0.43907]
[1725692395667,0.83142,2278.4,2277.9,1.09198782]
[1725692395868,0.83142,2278.4,2278.1,0.43907]
[1725692396072,0.3707,2278.5,2278.3,0.43902]
[1725692396471,0.3707,2278.5,2278.0,2.25046574]
[1725692396668,3.64678,2278.6,2278.3,0.43902]
[1725692397179,0.439,2278.5,2278.2,0.43904]
[1725692397673,3.64678,2278.6,2278.3,0.43903]
[1725692398276,3.2078,2278.6,2278.4,0.439]
[1725692399974,3.64677,2278.6,2278.3,0.43902]
[1725692400376,3.2078,2278.6,2278.4,0.43901]
[1725692400970,3.64677,2278.6,2278.3,0.43902]
[1725692401183,3.2078,2278.6,2278.4,0.43901]
[1725692401872,3.2078,2278.6,2278.1,2.83869348]
[1725692402075,1.6519,2278.7,2278.2,2.19608541]
[1725692402076,3.64683,2278.3,2278.2,2.19608541]
[1725692402270,0.43907,2278.2,2277.8,3.27780348]
[1725692402469,0.43907,2278.2,2277.9,2.19633747]
[1725692402470,0.43907,2278.1,2277.9,2.19633747]
[1725692402670,0.43907,2278.1,2278.0,2.19633747]
[1725692402974,1.1686,2278.2,2277.5,3.27786348]
[1725692402975,0.43912,2277.9,2277.5,3.27786348]
[1725692403172,3.64689,2278.0,2277.6,7.02904667]
[1725692403379,3.64689,2278.0,2277.7,2.63576889]
[1725692403677,3.64689,2278.0,2277.5,1.27]
[1725692403874,3.2078,2278.0,2277.6,6.58979763]
[1725692404072,3.2078,2278.0,2277.7,2.63578422]
[1725692404374,3.2078,2278.0,2277.8,2.19661169]
[1725692404568,3.2078,2278.0,2277.7,0.43913]
[1725692404771,3.64689,2278.0,2277.8,2.19658335]
[1725692404969,3.64689,2278.0,2277.7,0.43913]
[1725692405378,0.43909,2278.0,2277.8,2.19653366]
[1725692405571,0.43909,2278.0,2277.6,0.43915]
[1725692405772,0.43909,2278.0,2277.7,2.19664062]
[1725692405967,1.60766,2278.2,2277.8,2.19660454]
[1725692406269,1.60766,2278.2,2277.9,2.63549104]
[1725692406270,1.60765,2278.2,2277.9,2.63549104]
[1725692406580,1.60765,2278.2,2278.0,2.19639104]
[1725692406786,1.60765,2278.2,2277.8,1.70911]
[1725692406986,1.1686,2278.2,2277.9,2.63554427]
[1725692407170,1.1686,2278.2,2277.8,1.27]
[1725692407171,0.7765,2278.2,2278.0,2.19644427]
[1725692407375,0.7765,2278.2,2278.1,2.19638952]
[1725692407978,1.21555,2278.2,2278.1,2.19638952]
[1725692408291,1.21555,2278.2,2277.8,0.43912]
[1725692408476,1.21555,2278.2,2277.9,2.19636498]
[1725692408779,0.43907,2278.1,2278.0,2.19644191]
[1725692409173,0.43907,2278.1,2277.7,0.43913]
[1725692409382,0.43907,2278.1,2277.8,6.58912985]
[1725692409575,0.43907,2278.1,2277.9,2.19640808]
[1725692409883,0.43907,2278.1,2277.7,0.43913]
[1725692410181,0.43907,2278.1,2277.8,7.02856857]
[1725692410389,1.21556,2278.2,2277.9,2.63559819]
[1725692410577,0.3835,2278.2,2278.0,2.19649819]
[1725692410782,0.3835,2278.2,2278.1,2.19649819]
[1725692410975,0.3835,2278.2,2278.1,2.63556819]
[1725692411184,3.2078,2279.0,2278.1,24.2949211]
[1725692411383,4.11,2279.0,2278.7,0.43894]
[1725692411685,0.81977,2279.1,2278.7,0.43894]
[1725692412071,0.3809,2279.1,2278.8,0.43893]
[1725692412276,0.7631,2279.2,2278.8,0.43893]
[1725692412277,0.7631,2279.2,2278.9,2.63427607]
[1725692412574,0.7631,2279.2,2279.0,0.43889]
[1725692412976,0.7631,2279.2,2278.8,1.27]
[1725692412977,3.2078,2279.3,2279.1,4.82686]
[1725692413280,3.2078,2279.3,2279.2,2.63400323]
[1725692413478,3.2078,2279.3,2279.2,6.09606]
[1725692413784,3.2078,2279.3,2279.2,14.2911256]
[1725692413983,3.2078,2279.3,2279.2,13.0211256]
[1725692414174,3.2078,2279.8,2279.4,0.43882]
[1725692414485,3.5837,2279.8,2279.4,0.43882]
[1725692414879,3.5837,2279.8,2279.1,3.2078]
[1725692414880,3.5837,2279.8,2279.5,0.43879]
[1725692415085,0.3759,2279.8,2279.5,0.43879]
[1725692415384,0.3759,2279.8,2279.2,3.24542806]
[1725692415584,0.3576,2280.0,2279.2,3.24542806]
[1725692415585,0.3576,2280.0,2279.3,2.19477462]
[1725692415781,0.3576,2280.0,2279.1,3.2078]
[1725692415782,0.43881,2279.5,2279.1,0.43887]
[1725692415981,0.3759,2279.4,2279.1,0.43887]
[1725692416181,0.3759,2279.4,2278.9,3.03]
[1725692416380,0.3759,2279.4,2279.1,0.43887]
[1725692416588,0.7679,2279.4,2278.9,3.03]
[1725692416890,0.7679,2279.4,2279.0,2.19512736]
[1725692417186,0.7679,2279.4,2279.1,0.43887]
[1725692417987,1.20672,2279.4,2279.0,0.43889]
[1725692418293,0.7679,2279.4,2279.1,0.43887]
[1725692418782,1.20672,2279.4,2279.0,0.43888]
[1725692419481,3.9757,2279.4,2278.8,3.2078]
[1725692419684,0.43887,2279.2,2278.8,3.64673]
[1725692419885,0.43887,2279.2,2278.8,0.43893]
[1725692420991,0.43888,2279.1,2278.7,3.46894]
[1725692421188,1e-08,2279.1,2278.8,0.43893]
[1725692421383,0.3938,2279.0,2278.9,0.43891]
[1725692421885,0.3938,2279.0,2278.9,4.82691]
[1725692423683,0.3938,2279.0,2278.9,4.388]
[1725692426286,0.3938,2279.0,2278.9,4.82691]
[1725692426588,1e-08,2279.1,2279.0,0.43889]
[1725692426891,1e-08,2279.1,2279.0,10.82689]
[1725692427489,1e-08,2279.1,2279.0,11.92413]
[1725692427681,4.11,2279.6,2279.5,0.4388]
[1725692427994,1.18822,2279.9,2279.6,0.43878]
[1725692428585,0.7495,2279.9,2279.5,0.43879]
[1725692428892,1.18823,2279.9,2279.5,0.43879]
[1725692429483,1.18823,2279.9,2279.4,3.03]
[1725692429484,0.43876,2279.7,2279.4,3.03]
[1725692429683,0.43876,2279.7,2279.4,3.46882]
[1725692430088,0.43876,2279.7,2279.4,3.03]
[1725692430390,0.43878,2279.6,2279.3,0.22343756]
[1725692430591,0.43878,2279.6,2279.2,3.46884]
[1725692430794,0.3829,2279.5,2279.2,3.46884]
[1725692431298,0.3829,2279.5,2279.3,0.21702665]
[1725692431893,0.8217,2279.5,2279.3,0.21702665]
[1725692432089,0.3829,2279.5,2279.3,0.21702665]
[1725692432293,0.82171,2279.5,2279.3,0.21702665]
[1725692432490,3.2078,2279.8,2279.0,3.2078]
[1725692432689,3.2078,2279.8,2279.2,3.03]
[1725692432690,0.3931,2279.7,2279.2,3.03]
[1725692432895,0.43879,2279.6,2279.3,0.21687297]
[1725692433096,0.82249,2279.6,2279.3,0.65570297]
[1725692433299,0.3837,2279.6,2279.3,0.65570297]
[1725692433897,0.3837,2279.6,2279.4,0.43881]
[1725692434094,0.83187,2279.7,2279.4,0.43881]
[1725692435093,3.2078,2279.8,2279.5,4.3872]
[1725692435305,3.2078,2279.8,2279.7,3.46876]
[1725692435792,3.2078,2279.8,2279.7,7.85516]
[1725692435992,3.2078,2279.8,2279.5,3.03]
[1725692436203,3.64655,2279.8,2279.4,0.43881]
[1725692436902,3.2078,2279.8,2279.5,0.4388]
[1725692437487,3.2078,2279.8,2279.6,0.43877]
[1725692437693,3.2078,2279.8,2279.5,0.4388]
[1725692437898,3.2078,2279.8,2279.6,0.43876]
[1725692438093,3.2078,2279.8,2279.4,3.03]
[1725692438291,3.2078,2279.8,2279.6,0.43877]
[1725692440296,3.2078,2279.8,2279.5,0.43879]
[1725692440702,3.2078,2279.8,2279.4,3.4688]
[1725692441095,3.64654,2279.8,2279.4,3.4688]
[1725692441297,3.2078,2279.8,2279.4,3.03]
[1725692441601,3.64655,2279.8,2279.4,3.46882]
[1725692442292,3.2078,2279.8,2279.4,0.43881]
[1725692442501,3.64655,2279.8,2279.4,0.43881]
[1725692443298,0.43877,2279.7,2279.4,0.43881]
[1725692443500,0.3958,2279.6,2279.4,0.43881]
[1725692443903,0.3604,2279.5,2279.4,0.43881]
[1725692444994,3.2078,2279.8,2279.5,0.43878]
[1725692445194,3.5866,2279.8,2279.6,0.43877]
[1725692445396,3.5866,2279.8,2279.7,0.43876]
[1725692445695,3.2078,2279.8,2279.7,4.82516]
[1725692446300,0.3591,2279.9,2279.7,4.82515]
[1725692446505,0.3591,2279.9,2279.7,0.43875]
[1725692447108,0.3591,2279.9,2279.5,3.2078]
[1725692447109,0.3591,2279.9,2279.8,0.43874]
[1725692447708,0.3591,2279.9,2279.8,4.82514]
[1725692447908,4.4888,2280.2,2280.0,0.43869]
[1725692448106,4.4888,2280.2,2279.7,3.03]
[1725692448107,0.7423,2280.2,2279.7,3.03]
[1725692448407,1.18096,2280.2,2279.9,0.43871]
[1725692451304,0.7423,2280.2,2280.0,0.43869]
[1725692452610,0.7423,2280.2,2279.9,0.43871]
[1725692452611,1.18096,2280.2,2279.9,0.43871]